{"text_format":"1","workbook":"xlsx","n_sheets":4,"sheets":["About","Angle","Tee, Wye, & Dead End","Types"],"not_rendered":{"charts":0,"images":19,"macros":1,"external_links":0,"defined_names":3,"comments":0,"pivot_tables":0},"unopened":[],"bounds":{"document_bytes":16777216,"sheet_cells":100000,"rows_first":2000,"rows_last":500,"rows_between":2000,"halvings":0,"cell_chars":16384,"cell_head_chars":4096},"cells_cut":0,"cells_raw":0,"read":"whole","date_system":"1900"}

{"sheet":"About","index":0,"n_rows":68,"n_cols":12,"rows_kept":68,"cut":false,"hidden":false,"merged":[[0,0,0,8],[0,9,0,17]]}
["                                          CONCRETE THRUST BLOCK DESIGN                v. 3-2013",null,null,null,null,null,null,null,null,"                                          CONCRETE THRUST BLOCK DESIGN                v. 3-2013"]
["Use of this spreadsheet:"]
[null,null,null,null,null,null,null,null,null,null,null,"A= MIN. BEARING AREA REQUIRED. (W x L)  "]
[null,null,null,null,null,null,null,null,null,null,null,"(Refer To Figure Below and WI DWG WI-730)  "]
[]
[]
[]
[]
[]
[]
[]
[]
[]
[]
[]
[]
[]
[]
[]
[]
[]
[]
[]
[]
[]
["Example:"]
["A 12-inch diameter pipe will be installed for an irrigation pipeline system. The pipe will be"]
["buried under 4 feet of soil and include 90 degree bends. The working pressure in the pipe"]
["will be 50 pounds per square inch. The soil surrounding the trench consists of silty clay."]
[]
[]
[]
[]
[]
[]
[]
[]
[]
[]
[]
[]
[]
[]
[]
[]
[]
[]
[]
[]
[]
["Thrust force on the pipe bend"]
[]
[]
[]
[]
["Allowable soil bearing pressure to the depth to the center of the thrust block is"]
[]
[]
[]
[]
["From Table 52-6 of NEH Part 636.5207, the allowable bearing capacity for silty clay soil at a "]
["depth of 4 feet is 950 lb/ft2 and 1,200 lb/ft2 at 5 feet. The allowable bearing capacity at 4.5 feet"]
["may be determined by an average."]
[]
[]
[]
[]
["Area of thrust block required"]

{"sheet":"Angle","index":1,"n_rows":72,"n_cols":26,"rows_kept":72,"cut":false,"hidden":false,"merged":[[36,5,36,8],[0,0,0,8],[2,1,2,3],[2,5,2,6],[3,1,3,3],[4,1,4,8],[3,5,3,6]]}
["                                          CONCRETE THRUST BLOCK DESIGN                     v. 3-2013",null,null,null,null,null,null,null,null,null,null,null,null,null,null,null,null,null,null,null,null,null,null,null,null,"COUNTIES"]
[null,null,null,null,null,null,null,null,null,null,null,null,null,null,null,null,null,null,null,null,null,null,null,null,null,"ADAMS"]
["CLIENT:",null,null,null,"COUNTY:",null,null,"   DATE:",null,null,null,null,null,null,null,null,null,null,null,null,null,null,null,null,null,"ASHLAND"]
["DSN BY:",null,null,null,"CHK BY:",null,null,"   DATE:",null,null,null,null,null,null,null,null,null,null,null,null,null,null,null,null,null,"BARRON"]
["COMMENTS:",null,null,null,null,null,null,null,null,null,null,null,null,null,null,null,null,null,null,null,null,null,null,null,null,"BAYFIELD"]
[null,null,null,null,null,null,null,null,null,null,null,null,null,null,null,null,null,null,null,null,null,null,null,null,null,"BROWN"]
["Thrust Blocks for Pipe Angles",null,null,null,null,null,null,null,null,null,null,null,null,null,null,null,null,null,null,null,null,null,null,null,null,"BUFFALO"]
[null,null,null,null,null,null,null,null,null,null,null,null,null,null,null,null,null,null,null,null,null,null,null,null,null,"BURNETT"]
[null,null,null,null,null,null,null,null,null,null,null,null,null,null,null,null,null,null,null,null,null,null,null,null,null,"CALUMET"]
[null,null,null,null,null,null,null,null,null,null,null,null,null,null,null,null,null,null,null,null,null,null,null,null,null,"CHIPPEWA"]
[null,null,null,null,null,null,null,null,null,null,null,null,null,null,null,null,null,null,null,null,null,null,null,null,null,"CLARK"]
["Where: ",null,null,null,null,null,null,null,null,null,null,null,null,null,null,null,null,null,null,null,null,null,null,null,null,"COLUMBIA"]
["AT = Area of thrust block required (ft2)",null,null,null,null,null,null,null,null,null,null,null,null,null,null,null,null,null,null,null,null,null,null,null,null,"CRAWFORD"]
["P = Working pressure (lb/in2)",null,null,null,null,null,null,null,null,null,null,null,null,null,null,null,null,null,null,null,null,null,null,null,null,"DANE"]
["a = cross section area of the pipe (in2)",null,null,null,null,null,null,null,null,null,null,null,null,null,null,null,null,null,null,null,null,null,null,null,null,"DODGE"]
["ɵ = angle of pipe bend (degrees)",null,null,null,null,null,null,null,null,null,null,null,null,null,null,null,null,null,null,null,null,null,null,null,null,"DOOR"]
["qall = Allowable bearing pressure of the soil (lb/ft2)",null,null,null,null,null,null,null,null,null," ",null,null,null,null,null,null,null,null,null,null,null,null,null,null,"DOUGLAS"]
[null,null,null,null,null,null,null,null,null,null,null,null,null,null,null,null,null,null,null,null,null,null,null,null,null,"DUNN"]
["INPUTS",null,null,null,null,null,null,null,null,null,null,null,null,null,null,null,null,null,null,null,null,null,null,null,null,"EAU CLAIRE"]
[null,null,null,null,null,null,null,null,null,null,null,null,null,null,null,null,null,null,null,null,null,null,null,null,null,"FLORENCE"]
["Working Pressure (lb/in2)",null,null,null,null,null,"L (in)",{"$f":"E23+16","v":16},null,null,null,null,null,null,null,null,null,null,null,null,null,null,null,null,null,"FOND DU LAC"]
[null,null,null,null,null,null,null,null,null,null,null,null,null,null,null,null,null,null,null,null,null,null,null,null,null,"FOREST"]
["Inside Pipe Diameter (inches)",null,null,null,null,null,"W (in)",{"$f":"ROUND((F29*144/H21+0.5),0)","v":{"$error":"#DIV/0!"}},null,null,null,null,null,null,null,null,null,null,null,null,null,null,null,null,null,"GRANT"]
[null,null,null,null,null,null,null,null,null,null,null,null,null,null,null,null,null,null,null,null,null,null,null,null,null,"GREEN"]
["Deflection angle of pipe bend  (degrees)",null,null,null,null,null,null,null,null,null,null,null,null,null,null,null,null,null,null,null,null,null,null,null,null,"IRON"]
[null,null,null,null,null,null,null,null,null,null,null,null,"INPUT CONVERSIONS",null,null,null,null,null,null,null,null,null,null,null,null,"JACKSON"]
["Allowable Soil Bearing Pressure {from soil test or from Table 1 below} (lb/ft2)",null,null,null,null,null,null,null,null,null,null,null,null,null,null,null,null,null,null,null,null,null,null,null,null,"JEFFERSON"]
[null,null,null,null,null,null,null,null,null,null,null,null,"Max. Pressure",{"$f":"E21","v":0},"psi",null,null,null,null,null,null,null,null,null,null,"JUNEAU"]
[null,"Area of Thrust Block Required",null,null,null,{"$f":"N38","v":{"$error":"#DIV/0!"}},"  sq ft",null,null,null,null,null,null,null,null,null,null,null,null,null,null,null,null,null,null,"KENOSHA"]
[null,null,null,null,null,null,null,null,null,null,null,null,"Pipe Area",{"$f":"((PI()*((E23)^2))/4)","v":0},"in2",null,null,null,null,null,null,null,null,null,null,"KEWAUNEE"]
[null,"Min. Volume of Concrete** ",null,null,null,{"$f":"N40","v":{"$error":"#DIV/0!"}},"  cu yd",null,null,null,null,null,null,null,null,null,null,null,null,null,null,null,null,null,null,"LA CROSSE"]
[null,"**Cast in place concrete requires minimum thickness of 8\" around pipe.",null,null,null,null,null,null,null,null,null,null,"Deflection Angle ",{"$f":"E25","v":0},"degrees",null,null,null,null,null,null,null,null,null,null,"LAFAYETTE"]
[null,null,null,null,null,null,null,null,null,null,null,null,null,null,null,null,null,null,null,null,null,null,null,null,null,"LANGLADE"]
["Table 52-6 (of NEH Part 636.5207) - Allowable Soil Bearing Pressure",null,null,null,null,null,null,null,null,null,null,null,"Convert Deg to Rad",{"$f":"RADIANS(N32)","v":0},null,null,null,null,null,null,null,null,null,null,null,"LINCOLN"]
[null,null,null,null,null,"  Depth of cover to center of thrust block",null,null,null,null,null,null,null,null,null,null,null,null,null,null,null,null,null,null,null,"MANITOWOC"]
["Natural soil material",null,null,null,null,"2 ft","3 ft","4 ft","5 ft",null,null,null,"Thrust Force",{"$f":"((2*(N28)*((N30))*(SIN(N34/2))))","v":0},"pounds",null,null,null,null,null,null,null,null,null,null,"MARATHON"]
[null,null,null,null,null,"lb/ft2",null,null,null,null,null,null,null,null,null,null,null,null,null,null,null,null,null,null,null,"MARINETTE"]
["Sound Bedrock ",null,null,null,null,8000,10000,10000,10000,null,null,null,"Area of Thrust Block",{"$f":"N36/I27","v":{"$error":"#DIV/0!"}},"sq ft",null,null,null,null,null,null,null,null,null,null,"MARQUETTE"]
["Dense sand and gravel mixture (assumed θ=40°)",null,null,null,null,1200,1800,2400,3000,null,null,null,null,null,null,null,null,null,null,null,null,null,null,null,null,"MENOMINEE"]
["Dense fine to coarse sand (assumed θ=35°)",null,null,null,null,800,1200,1650,2100,null,null,null,"Min. Vol. of Concrete",{"$f":"H21^2*H23/(12^3*27)","v":{"$error":"#DIV/0!"}},"cu yds",null,null,null,null,null,null,null,null,null,null,"MILWAUKEE"]
["Silt and clay mixture (assumed θ=25°)",null,null,null,null,500,700,950,1200,null,null,null,null,null,null,null,null,null,null,null,null,null,null,null,null,"MONROE"]
[null,null,null,null,null,null,null,null,null,null,null,null,null,null,null,null,null,null,null,null,null,null,null,null,null,"ONEIDA"]
[null,null,null,null,null,null,null,null,null,null,null,null,null,null,null,null,null,null,null,null,null,null,null,null,null,"OUTAGAMIE"]
[null,null,null,null,null,null,null,null,null,null,null,null,null,null,null,null,null,null,null,null,null,null,null,null,null,"OZAUKEE"]
[null,null,null,null,null,null,null,null,null,null,null,null,null,null,null,null,null,null,null,null,null,null,null,null,null,"PEPIN"]
[null,null,null,null,null,null,null,null,null,null,null,null,null,null,null,null,null,null,null,null,null,null,null,null,null,"PIERCE"]
[null,null,null,null,null,null,null,null,null,null,null,null,null,null,null,null,null,null,null,null,null,null,null,null,null,"POLK"]
[null,null,null,null,null,null,null,null,null,null,null,null,null,null,null,null,null,null,null,null,null,null,null,null,null,"PORTAGE"]
[null,null,null,null,null,null,null,null,null,null,null,null,null,null,null,null,null,null,null,null,null,null,null,null,null,"PRICE"]
[null,null,null,null,null,null,null,null,null,null,null,null,null,null,null,null,null,null,null,null,null,null,null,null,null,"RACINE"]
[null,null,null,null,null,null,null,null,null,null,null,null,null,null,null,null,null,null,null,null,null,null,null,null,null,"RICHLAND"]
[null,null,null,null,null,null,null,null,null,null,null,null,null,null,null,null,null,null,null,null,null,null,null,null,null,"ROCK"]
[null,null,null,null,null,null,null,null,null,null,null,null,null,null,null,null,null,null,null,null,null,null,null,null,null,"RUSK"]
[null,null,null,null,null,null,null,null,null,null,null,null,null,null,null,null,null,null,null,null,null,null,null,null,null,"SAINT CROIX"]
[null,null,null,null,null,null,null,null,null,null,null,null,null,null,null,null,null,null,null,null,null,null,null,null,null,"SAUK"]
[null,null,null,null,null,null,null,null,null,null,null,null,null,null,null,null,null,null,null,null,null,null,null,null,null,"SAWYER"]
[null,null,null,null,null,null,null,null,null,null,null,null,null,null,null,null,null,null,null,null,null,null,null,null,null,"SHAWANO"]
[null,null,null,null,null,null,null,null,null,null,null,null,null,null,null,null,null,null,null,null,null,null,null,null,null,"SHEBOYGAN"]
[null,null,null,null,null,null,null,null,null,null,null,null,null,null,null,null,null,null,null,null,null,null,null,null,null,"ST CROIX"]
[null,null,null,null,null,null,null,null,null,null,null,null,null,null,null,null,null,null,null,null,null,null,null,null,null,"ST. CROIX"]
[null,null,null,null,null,null,null,null,null,null,null,null,null,null,null,null,null,null,null,null,null,null,null,null,null,"TAYLOR"]
[null,null,null,null,null,null,null,null,null,null,null,null,null,null,null,null,null,null,null,null,null,null,null,null,null,"TREMPEALEAU"]
[null,null,null,null,null,null,null,null,null,null,null,null,null,null,null,null,null,null,null,null,null,null,null,null,null,"VERNON"]
[null,null,null,null,null,null,null,null,null,null,null,null,null,null,null,null,null,null,null,null,null,null,null,null,null,"VILAS"]
[null,null,null,null,null,null,null,null,null,null,null,null,null,null,null,null,null,null,null,null,null,null,null,null,null,"WALWORTH"]
[null,null,null,null,null,null,null,null,null,null,null,null,null,null,null,null,null,null,null,null,null,null,null,null,null,"WASHBURN"]
[null,null,null,null,null,null,null,null,null,null,null,null,null,null,null,null,null,null,null,null,null,null,null,null,null,"WASHINGTON"]
[null,null,null,null,null,null,null,null,null,null,null,null,null,null,null,null,null,null,null,null,null,null,null,null,null,"WAUKESHA"]
[null,null,null,null,null,null,null,null,null,null,null,null,null,null,null,null,null,null,null,null,null,null,null,null,null,"WAUPACA"]
[null,null,null,null,null,null,null,null,null,null,null,null,null,null,null,null,null,null,null,null,null,null,null,null,null,"WAUSHARA"]
[null,null,null,null,null,null,null,null,null,null,null,null,null,null,null,null,null,null,null,null,null,null,null,null,null,"WINNEBAGO"]
[null,null,null,null,null,null,null,null,null,null,null,null,null,null,null,null,null,null,null,null,null,null,null,null,null,"WOOD"]

{"sheet":"Tee, Wye, & Dead End","index":2,"n_rows":72,"n_cols":26,"rows_kept":72,"cut":false,"hidden":false,"merged":[[34,5,34,8],[0,0,0,8],[2,1,2,3],[2,5,2,6],[3,1,3,3],[4,1,4,8],[3,5,3,6]]}
["                                          CONCRETE THRUST BLOCK DESIGN                     v. 3-2013",null,null,null,null,null,null,null,null,null,null,null,null,null,null,null,null,null,null,null,null,null,null,null,null,"COUNTIES"]
[null,null,null,null,null,null,null,null,null,null,null,null,null,null,null,null,null,null,null,null,null,null,null,null,null,"ADAMS"]
["CLIENT:",null,null,null,"COUNTY:",null,null,"   DATE:",null,null,null,null,null,null,null,null,null,null,null,null,null,null,null,null,null,"ASHLAND"]
["DSN BY:",null,null,null,"CHK BY:",null,null,"   DATE:",null,null,null,null,null,null,null,null,null,null,null,null,null,null,null,null,null,"BARRON"]
["COMMENTS:",null,null,null,null,null,null,null,null,null,null,null,null,null,null,null,null,null,null,null,null,null,null,null,null,"BAYFIELD"]
[null,null,null,null,null,null,null,null,null,null,null,null,null,null,null,null,null,null,null,null,null,null,null,null,null,"BROWN"]
["Thrust Blocks for Tee,",null,null,null,null,null,null,null,null,null,null,null,null,null,null,null,null,null,null,null,null,null,null,null,null,"BUFFALO"]
["Wye, and Dead End",null,null,null,null,null,null,null,null,null,null,null,null,null,null,null,null,null,null,null,null,null,null,null,null,"BURNETT"]
[null,null,null,null,null,null,null,null,null,null,null,null,null,null,null,null,null,null,null,null,null,null,null,null,null,"CALUMET"]
[null,null,null,null,null,null,null,null,null,null,null,null,null,null,null,null,null,null,null,null,null,null,null,null,null,"CHIPPEWA"]
[null,null,null,null,null,null,null,null,null,null,null,null,null,null,null,null,null,null,null,null,null,null,null,null,null,"CLARK"]
[null,null,null,null,null,null,null,null,null,null,null,null,null,null,null,null,null,null,null,null,null,null,null,null,null,"COLUMBIA"]
[null,null,null,null,null,null,null,null,null,null,null,null,null,null,null,null,null,null,null,null,null,null,null,null,null,"CRAWFORD"]
["Where: ",null,null,null,null,null,null,null,null,null,null,null,null,null,null,null,null,null,null,null,null,null,null,null,null,"DANE"]
["AT = Area of thrust block required (ft2)",null,null,null,null,null,null,null,null,null,null,null,null,null,null,null,null,null,null,null,null,null,null,null,null,"DODGE"]
["P = Working pressure (lb/in2)",null,null,null,null,null,null,null,null,null,null,null,null,null,null,null,null,null,null,null,null,null,null,null,null,"DOOR"]
["a = cross section area of the pipe (in2)",null,null,null,null,null,null,null,null,null," ",null,null,null,null,null,null,null,null,null,null,null,null,null,null,"DOUGLAS"]
["* = see digram on right for location",null,null,null,null,null,null,null,null,null,null,null,null,null,null,null,null,null,null,null,null,null,null,null,null,"DUNN"]
["qall = Allowable bearing pressure of the soil (lb/ft2)",null,null,null,null,null,null,null,null,null,null,null,null,null,null,null,null,null,null,null,null,null,null,null,null,"EAU CLAIRE"]
[null,null,null,null,null,null,null,null,null,null,null,null,null,null,null,null,null,null,null,null,null,null,null,null,null,"FLORENCE"]
["INPUTS",null,null,null,null,null,"L (in)",{"$f":"E24+16","v":16},null,null,null,null,null,null,null,null,null,null,null,null,null,null,null,null,null,"FOND DU LAC"]
["Working Pressure (lb/in2)",null,null,null,null,null,"W (in)",{"$f":"ROUND((F27*144/H21+0.5),0)","v":{"$error":"#DIV/0!"}},null,null,null,null,null,null,null,null,null,null,null,null,null,null,null,null,null,"FOREST"]
[null,null,null,null,null,null,null,null,null,null,null,null,null,null,null,null,null,null,null,null,null,null,null,null,null,"GRANT"]
["Inside Pipe Diameter (inches)",null,null,null,null,null,null,null,null,null,null,null,null,null,null,null,null,null,null,null,null,null,null,null,null,"GREEN"]
["Allowable Soil Bearing Pressure {from soil test or from Table 1 below} (lb/ft2)",null,null,null,null,null,null,null,null,null,null,null,"INPUT CONVERSIONS",null,null,null,null,null,null,null,null,null,null,null,null,"IRON"]
[null,null,null,null,null,null,null,null,null,null,null,null,null,null,null,null,null,null,null,null,null,null,null,null,null,"JACKSON"]
[null,"Area of Thrust Block Required",null,null,null,{"$f":"N33","v":{"$error":"#DIV/0!"}},"  sq ft",null,null,null,null,null,"Max. Pressure",{"$f":"E22","v":0},"psi",null,null,null,null,null,null,null,null,null,null,"JEFFERSON"]
[null,null,null,null,null,null,null,null,null,null,null,null,null,null,null,null,null,null,null,null,null,null,null,null,null,"JUNEAU"]
[null,"Min. Volume of Concrete** ",null,null,null,{"$f":"N35","v":{"$error":"#DIV/0!"}},"  cu yd",null,null,null,null,null,"Pipe Area",{"$f":"((PI()*((E24)^2))/4)","v":0},"in2",null,null,null,null,null,null,null,null,null,null,"KENOSHA"]
[null,"**Cast in place concrete requires minimum thickness of 8\" around pipe.",null,null,null,null,null,null,null,null,null,null,null,null,null,null,null,null,null,null,null,null,null,null,null,"KEWAUNEE"]
[null,null,null,null,null,null,null,null,null,null,null,null,"Thrust Force",{"$f":"(((N27)*((N29))))","v":0},"pounds",null,null,null,null,null,null,null,null,null,null,"LA CROSSE"]
["Table 52-6 (of NEH Part 636.5207) - Allowable Soil Bearing Pressure",null,null,null,null,null,null,null,null,null,null,null,null,null,null,null,null,null,null,null,null,null,null,null,null,"LAFAYETTE"]
[null,null,null,null,null,"  Depth of cover to center of thrust block",null,null,null,null,null,null,"Area of Thrust Block",{"$f":"N31/I25","v":{"$error":"#DIV/0!"}},"sq ft",null,null,null,null,null,null,null,null,null,null,"LANGLADE"]
["Natural soil material",null,null,null,null,"2 ft","3 ft","4 ft","5 ft",null,null,null,null,null,null,null,null,null,null,null,null,null,null,null,null,"LINCOLN"]
[null,null,null,null,null,"lb/ft2",null,null,null,null,null,null,"Min. Vol. of Concrete",{"$f":"H21^2*H22/(12^3*27)","v":{"$error":"#DIV/0!"}},"cu yds",null,null,null,null,null,null,null,null,null,null,"MANITOWOC"]
["Sound Bedrock ",null,null,null,null,8000,10000,10000,10000,null,null,null,null,null,null,null,null,null,null,null,null,null,null,null,null,"MARATHON"]
["Dense sand and gravel mixture (assumed θ=40°)",null,null,null,null,1200,1800,2400,3000,null,null,null,null,null,null,null,null,null,null,null,null,null,null,null,null,"MARINETTE"]
["Dense fine to coarse sand (assumed θ=35°)",null,null,null,null,800,1200,1650,2100,null,null,null,null,null,null,null,null,null,null,null,null,null,null,null,null,"MARQUETTE"]
["Silt and clay mixture (assumed θ=25°)",null,null,null,null,500,700,950,1200,null,null,null,null,null,null,null,null,null,null,null,null,null,null,null,null,"MENOMINEE"]
[null,null,null,null,null,null,null,null,null,null,null,null,null,null,null,null,null,null,null,null,null,null,null,null,null,"MILWAUKEE"]
[null,null,null,null,null,null,null,null,null,null,null,null,null,null,null,null,null,null,null,null,null,null,null,null,null,"MONROE"]
[null,null,null,null,null,null,null,null,null,null,null,null,null,null,null,null,null,null,null,null,null,null,null,null,null,"ONEIDA"]
[null,null,null,null,null,null,null,null,null,null,null,null,null,null,null,null,null,null,null,null,null,null,null,null,null,"OUTAGAMIE"]
[null,null,null,null,null,null,null,null,null,null,null,null,null,null,null,null,null,null,null,null,null,null,null,null,null,"OZAUKEE"]
[null,null,null,null,null,null,null,null,null,null,null,null,null,null,null,null,null,null,null,null,null,null,null,null,null,"PEPIN"]
[null,null,null,null,null,null,null,null,null,null,null,null,null,null,null,null,null,null,null,null,null,null,null,null,null,"PIERCE"]
[null,null,null,null,null,null,null,null,null,null,null,null,null,null,null,null,null,null,null,null,null,null,null,null,null,"POLK"]
[null,null,null,null,null,null,null,null,null,null,null,null,null,null,null,null,null,null,null,null,null,null,null,null,null,"PORTAGE"]
[null,null,null,null,null,null,null,null,null,null,null,null,null,null,null,null,null,null,null,null,null,null,null,null,null,"PRICE"]
[null,null,null,null,null,null,null,null,null,null,null,null,null,null,null,null,null,null,null,null,null,null,null,null,null,"RACINE"]
[null,null,null,null,null,null,null,null,null,null,null,null,null,null,null,null,null,null,null,null,null,null,null,null,null,"RICHLAND"]
[null,null,null,null,null,null,null,null,null,null,null,null,null,null,null,null,null,null,null,null,null,null,null,null,null,"ROCK"]
[null,null,null,null,null,null,null,null,null,null,null,null,null,null,null,null,null,null,null,null,null,null,null,null,null,"RUSK"]
[null,null,null,null,null,null,null,null,null,null,null,null,null,null,null,null,null,null,null,null,null,null,null,null,null,"SAINT CROIX"]
[null,null,null,null,null,null,null,null,null,null,null,null,null,null,null,null,null,null,null,null,null,null,null,null,null,"SAUK"]
[null,null,null,null,null,null,null,null,null,null,null,null,null,null,null,null,null,null,null,null,null,null,null,null,null,"SAWYER"]
[null,null,null,null,null,null,null,null,null,null,null,null,null,null,null,null,null,null,null,null,null,null,null,null,null,"SHAWANO"]
[null,null,null,null,null,null,null,null,null,null,null,null,null,null,null,null,null,null,null,null,null,null,null,null,null,"SHEBOYGAN"]
[null,null,null,null,null,null,null,null,null,null,null,null,null,null,null,null,null,null,null,null,null,null,null,null,null,"ST CROIX"]
[null,null,null,null,null,null,null,null,null,null,null,null,null,null,null,null,null,null,null,null,null,null,null,null,null,"ST. CROIX"]
[null,null,null,null,null,null,null,null,null,null,null,null,null,null,null,null,null,null,null,null,null,null,null,null,null,"TAYLOR"]
[null,null,null,null,null,null,null,null,null,null,null,null,null,null,null,null,null,null,null,null,null,null,null,null,null,"TREMPEALEAU"]
[null,null,null,null,null,null,null,null,null,null,null,null,null,null,null,null,null,null,null,null,null,null,null,null,null,"VERNON"]
[null,null,null,null,null,null,null,null,null,null,null,null,null,null,null,null,null,null,null,null,null,null,null,null,null,"VILAS"]
[null,null,null,null,null,null,null,null,null,null,null,null,null,null,null,null,null,null,null,null,null,null,null,null,null,"WALWORTH"]
[null,null,null,null,null,null,null,null,null,null,null,null,null,null,null,null,null,null,null,null,null,null,null,null,null,"WASHBURN"]
[null,null,null,null,null,null,null,null,null,null,null,null,null,null,null,null,null,null,null,null,null,null,null,null,null,"WASHINGTON"]
[null,null,null,null,null,null,null,null,null,null,null,null,null,null,null,null,null,null,null,null,null,null,null,null,null,"WAUKESHA"]
[null,null,null,null,null,null,null,null,null,null,null,null,null,null,null,null,null,null,null,null,null,null,null,null,null,"WAUPACA"]
[null,null,null,null,null,null,null,null,null,null,null,null,null,null,null,null,null,null,null,null,null,null,null,null,null,"WAUSHARA"]
[null,null,null,null,null,null,null,null,null,null,null,null,null,null,null,null,null,null,null,null,null,null,null,null,null,"WINNEBAGO"]
[null,null,null,null,null,null,null,null,null,null,null,null,null,null,null,null,null,null,null,null,null,null,null,null,null,"WOOD"]

{"sheet":"Types","index":3,"n_rows":1,"n_cols":9,"rows_kept":1,"cut":false,"hidden":false,"merged":[]}
["Tee",null,null,null,"Wye",null,null,null,"Angle"]